bitfinex-derivatives/quotes_ETHF0:USTF0_20250115
["timestamp","ask_amount","ask_price","bid_price","bid_amount"]
[1736925266908,4.85970852,3237.4,3237.3,0.30906]
[1736925288329,4.85970852,3237.4,3236.8,3.2078]
[1736925288528,0.30909,3237.1,3237.0,0.30909]
[1736925288925,3.76136031,3237.1,3237.0,0.30909]
[1736925290425,3.45227031,3237.1,3237.0,0.30909]
[1736925290727,1.14743638,3237.1,3237.0,0.30909]
[1736925291028,1.45651638,3237.1,3237.0,0.30909]
[1736925291328,4.9624948,3237.1,3237.0,0.30909]
[1736925291526,4.9624948,3237.1,3236.8,3.2078]
[1736925291730,1.4628,3237.0,3236.9,0.3091]
[1736925292233,4.77554405,3237.0,3236.9,0.3091]
[1736925293235,6.23207043,3237.0,3236.9,0.3091]
[1736925293627,5.92298043,3237.0,3236.9,0.3091]
[1736925297038,4.77554405,3237.0,3236.9,0.3091]
[1736925297335,3.2078,3237.3,3236.9,1.14743638]
[1736925297533,0.4757,3237.2,3237.1,0.30908]
[1736925297728,3.90549715,3237.2,3237.1,0.30908]
[1736925299938,3.42979715,3237.2,3237.1,1.45651638]
[1736925300138,1.62313638,3237.6,3237.5,0.30905]
[1736925300328,0.4757,3237.6,3237.5,1.45648638]
[1736925300529,3.2078,3237.7,3237.6,0.30904]
[1736925300734,3.2078,3238.1,3238.0,0.309]
[1736925301133,6.89592322,3238.1,3238.0,41.109]
[1736925302537,3.68812322,3238.1,3238.0,41.109]
[1736925310241,3.21812322,3238.1,3238.0,41.109]
[1736925328859,1.45642638,3238.1,3238.0,40.8]
[1736925329164,0.30901,3237.9,3237.8,3.2078]
[1736925329357,1.45644638,3237.9,3237.8,0.30902]
[1736925329559,4.37967794,3237.9,3237.8,41.10902]
[1736925329758,4.85537794,3237.9,3237.8,41.10902]
[1736925330258,3.70794156,3237.9,3237.8,41.10902]
[1736925339765,3.70794156,3237.9,3237.8,42.25645638]
[1736925341461,1.14743638,3238.3,3238.2,0.30898]
[1736925341666,2.13563638,3238.3,3238.2,0.30898]
[1736925341867,5.40981877,3238.3,3238.2,0.30898]
[1736925345669,4.26238239,3238.3,3238.2,0.30898]
[1736925349579,5.40981877,3238.3,3238.2,0.30898]
[1736925351882,3.27418239,3238.3,3238.2,0.30898]
[1736925352083,0.4779,3238.5,3238.4,0.30896]
[1736925352479,0.4779,3238.5,3238.4,41.10896]
[1736925356684,0.4779,3238.5,3238.4,45.46419638]
[1736925363386,0.4779,3238.5,3238.4,42.25639638]
[1736925367391,5.17288234,3238.5,3238.4,41.10896]
[1736925368598,4.02544596,3238.5,3238.4,41.10896]
[1736925370294,5.17288234,3238.5,3238.4,41.10896]
[1736925371292,4.02544596,3238.5,3238.4,41.10896]
[1736925371501,0.4551,3238.7,3238.6,0.30894]
[1736925371697,0.4551,3238.7,3238.6,1.45637638]
[1736925372192,0.9753,3239.0,3238.6,1.14743638]
[1736925372393,1.4503,3239.0,3238.9,1.45634638]
[1736925372794,4.8885602,3239.0,3238.9,1.45634638]
[1736925374802,0.4982,3239.0,3238.9,1.45634638]
[1736925375597,0.4627,3239.3,3238.9,1.14743638]
[1736925375798,0.4627,3239.3,3239.2,1.45631638]
[1736925376300,3.7815435,3239.3,3239.2,1.45631638]
[1736925376902,4.2619435,3239.3,3239.2,1.45631638]
[1736925379001,0.9431,3239.3,3239.2,1.45631638]
[1736925380502,0.4804,3239.3,3239.2,1.45631638]
[1736925381097,0.4745,3239.7,3239.6,0.30884]
[1736925381297,0.9254,3239.7,3239.6,0.30884]
[1736925381498,4.29534199,3239.7,3239.6,0.30884]
[1736925391119,4.29534199,3239.7,3239.6,1.45627638]
[1736925392612,3.2078,3240.3,3239.6,1.14743638]
[1736925392817,0.4565,3240.1,3240.0,1.45624638]
[1736925393017,3.74247602,3240.1,3240.0,1.45624638]
[1736925393212,0.4565,3240.1,3240.0,1.45624638]
[1736925393716,4.00457781,3240.1,3240.0,1.45624638]
[1736925395723,0.4565,3240.1,3240.0,1.45624638]
[1736925401022,0.4565,3240.1,3240.0,0.30881]
[1736925403626,0.4565,3240.1,3240.0,1.45624638]
[1736925404525,0.4916,3240.5,3240.4,0.30877]
[1736925404730,1.4875,3240.5,3240.4,1.45620638]
[1736925406432,1.4875,3240.5,3240.4,0.30877]
[1736925408727,1.4875,3240.5,3239.7,44.0078]
[1736925408935,1.14743638,3240.3,3239.8,1.63403638]
[1736925409227,1.45621638,3240.3,3240.1,0.30879]
[1736925409434,3.42326548,3240.2,3240.1,0.30879]
[1736925412035,2.63493638,3240.5,3240.3,0.30877]
[1736925412336,3.47545036,3240.4,3240.3,0.30877]
[1736925420441,3.78422036,3240.4,3240.2,0.30878]
[1736925420640,1.14743638,3240.3,3240.2,0.30879]
[1736925421341,2.63493638,3240.5,3239.9,1.14743638]
[1736925421640,1.4875,3240.5,3240.4,0.30877]
[1736925422344,1.4875,3240.5,3240.4,41.10877]
[1736925422946,0.5001,3240.5,3240.4,41.10877]
[1736925423146,0.5001,3240.5,3240.4,41.58137]
[1736925423441,0.9202,3241.1,3241.0,0.30871]
[1736925424135,0.9202,3241.1,3241.0,41.10871]
[1736925424539,2.06763638,3241.1,3241.0,41.10871]
[1736925424738,2.52243638,3241.1,3241.0,41.10871]
[1736925424933,3.2078,3241.6,3241.0,41.94743638]
[1736925425139,4.35523638,3241.6,3241.4,0.30867]
[1736925425443,3.18323703,3241.5,3241.4,0.30867]
[1736925425841,3.2078,3241.6,3241.3,1.14743638]
[1736925426141,3.2078,3241.6,3241.5,0.30866]
[1736925426348,0.4715,3241.7,3241.6,0.30865]
[1736925427941,2.41519008,3242.7,3241.5,3.2078]
[1736925428145,2.41519008,3242.7,3241.4,2.41519008]
[1736925428146,0.4743,3242.4,3242.3,0.30859]
[1736925428540,0.4743,3242.4,3242.3,41.10859]
[1736925431043,0.4743,3242.4,3242.3,44.31639]
[1736925431238,0.4743,3242.4,3242.3,44.0078]
[1736925431747,3.89968317,3242.4,3242.3,44.0078]
[1736925432244,3.89968317,3242.4,3241.4,3.2078]
[1736925432450,5.62299008,3241.9,3241.4,3.51646]
[1736925432649,0.4715,3241.8,3241.5,41.10866]
[1736925432852,4.49941775,3241.8,3241.5,41.10866]
[1736925433351,4.80805775,3241.8,3241.5,40.8]
[1736925433752,4.49941775,3241.8,3241.5,40.8]
[1736925434050,0.30865,3241.7,3241.5,40.8]
[1736925434359,3.31555883,3241.6,3241.5,40.8]
[1736925435357,2.72384008,3241.6,3241.5,40.8]
[1736925435751,5.69688376,3241.6,3241.5,40.8]
[1736925436452,3.28169368,3241.6,3241.5,40.8]
[1736925436843,3.59034368,3241.6,3241.5,40.8]
[1736925437048,0.30865,3241.6,3241.5,40.8]
[1736925437557,3.5522449,3241.6,3241.5,40.8]
[1736925437957,3.8608949,3241.7,3241.5,40.8]
[1736925438258,0.30865,3241.7,3241.5,40.8]
[1736925438558,3.50863522,3241.6,3241.5,40.8]
[1736925439857,3.81728522,3241.6,3241.5,40.8]
[1736925440258,0.30865,3241.6,3241.5,40.8]
[1736925440559,3.5516814,3241.6,3241.5,40.8]
[1736925442761,3.2430314,3241.6,3241.5,40.8]
[1736925442959,3.5516814,3241.6,3241.5,40.8]
[1736925443254,0.30865,3241.6,3241.5,40.8]
[1736925443460,3.79142034,3241.6,3241.5,40.8]
[1736925444660,3.48277034,3241.6,3241.5,40.8]
[1736925444860,3.48277034,3241.6,3241.5,41.10866]
[1736925445057,3.82299176,3241.7,3241.5,41.10866]
[1736925445358,0.30865,3241.7,3241.5,41.10866]
[1736925445552,3.26544259,3241.6,3241.5,41.10866]
[1736925446560,3.21447729,3241.7,3241.5,41.10866]
[1736925446760,3.66283008,3241.8,3241.5,41.10866]
[1736925446956,3.21447729,3241.7,3241.5,41.10866]
[1736925447358,3.52311729,3241.7,3241.5,41.10866]
[1736925448258,3.21447729,3241.7,3241.5,40.8]
[1736925448461,0.30865,3241.6,3241.5,40.8]
[1736925448663,3.52312729,3241.7,3241.5,41.10866]
[1736925448858,3.31236713,3241.6,3241.5,41.10866]
[1736925449063,0.30865,3241.7,3241.5,41.10866]
[1736925449463,3.30746776,3241.6,3241.5,41.10866]
[1736925450066,0.30865,3241.7,3241.5,41.10866]
[1736925450067,3.61611776,3241.7,3241.5,41.10866]
[1736925450265,0.30865,3241.7,3241.5,41.10866]
[1736925450460,3.35419008,3241.8,3241.5,41.10866]
[1736925450662,3.26228711,3241.6,3241.5,41.10866]
[1736925450869,3.57092711,3241.7,3241.5,41.10866]
[1736925451070,0.30864,3241.7,3241.5,41.10866]
[1736925451468,0.30868,3241.4,3241.2,0.30869]
[1736925451864,0.4723,3241.3,3241.2,0.30869]
[1736925452170,3.89732205,3241.3,3241.2,0.30869]
[1736925452564,3.89732205,3241.3,3241.2,41.10869]
[1736925452966,3.89732205,3241.3,3241.2,40.8]
[1736925453970,3.89732205,3241.3,3241.2,41.10869]
[1736925456772,3.90050764,3241.3,3241.2,41.10869]
[1736925457668,3.90050764,3241.3,3241.2,40.8]
[1736925457866,4.20918764,3241.3,3241.2,40.8]
[1736925458176,3.90050764,3241.3,3241.2,41.10869]
[1736925462277,3.90050764,3241.3,3241.2,40.8]
[1736925462675,4.20918764,3241.3,3241.2,40.8]
[1736925464281,3.90050764,3241.3,3241.2,40.8]
[1736925464476,4.20918764,3241.3,3241.2,40.8]
[1736925464779,3.90050764,3241.3,3240.9,0.30872]
[1736925465085,0.7649,3241.2,3240.9,0.30872]
[1736925465281,0.7649,3241.2,3241.0,40.8]
[1736925465580,3.54128187,3241.1,3241.0,41.10871]
[1736925467081,3.54128187,3241.1,3241.0,40.8]
[1736925467272,3.84998187,3241.1,3241.0,40.8]
[1736925468082,3.54128187,3241.1,3241.0,40.8]
[1736925468684,0.47548559,3241.3,3241.0,40.8]
[1736925468881,0.47548559,3241.3,3241.2,0.30869]
[1736925469184,3.80685095,3241.3,3241.2,0.30869]
[1736925470276,3.33455095,3241.3,3241.2,0.30869]
[1736925470675,0.00318559,3241.3,3241.2,0.30869]
[1736925470886,0.00318559,3241.3,3241.2,0.80419]
[1736925479984,0.00318559,3241.3,3241.2,4.01199]
[1736925483599,0.00318559,3241.3,3241.2,4.01809]
[1736925484587,0.00318559,3241.3,3241.2,44.81809]
[1736925485494,0.00318559,3241.3,3241.2,44.81199]
[1736925488791,0.00318559,3241.3,3241.2,44.31649]
[1736925493103,0.00318559,3241.3,3241.2,41.10869]
[1736925493404,0.00318559,3241.3,3241.2,44.31649]
[1736925494900,0.00318559,3241.3,3241.2,44.78459]
[1736925497204,0.00318559,3241.3,3241.2,44.31649]
[1736925501107,0.00318559,3241.3,3241.2,49.31649]
[1736925501306,0.00318559,3241.3,3241.2,49.82219]
[1736925501502,0.974,3242.4,3241.2,49.5135]
[1736925501708,1.4277,3242.4,3242.3,0.30859]
[1736925502209,1.4277,3242.4,3242.3,41.10859]
[1736925502409,0.9443,3242.4,3242.3,41.10859]
[1736925502619,0.002,3243.0,3242.9,0.30853]
[1736925502817,0.4557,3243.0,3242.9,3.51633]
[1736925504922,0.4557,3243.0,3242.9,3.2078]
[1736925505125,0.4557,3243.0,3242.9,3.51633]
[1736925505516,3.73600206,3243.0,3242.9,3.51633]
[1736925506326,0.4557,3243.0,3242.9,3.51633]
[1736925506525,0.4557,3243.0,3242.9,5.93152008]
[1736925506526,0.002,3243.0,3242.9,5.93152008]
[1736925507219,0.002,3243.0,3242.9,46.73152008]
[1736925508028,0.002,3243.0,3242.9,51.73152008]
[1736925508323,0.4906,3243.7,3243.6,0.30846]
[1736925508921,0.4906,3243.7,3243.6,41.10846]
[1736925512136,0.47,3244.1,3243.6,43.21519008]
[1736925512319,0.9317,3244.1,3244.0,0.30843]
[1736925517132,0.9317,3244.1,3243.9,0.30843]
[1736925517329,0.9317,3244.1,3243.8,0.30844]
[1736925517629,0.9317,3244.1,3243.6,43.21519008]
[1736925517833,0.9317,3244.1,3243.9,0.30843]
[1736925518532,0.4617,3244.1,3243.6,43.21519008]
[1736925518833,0.4617,3244.1,3244.0,0.30843]
[1736925522537,0.4816,3244.2,3244.1,0.30842]
[1736925525139,0.4816,3244.2,3244.0,0.30842]
[1736925525331,0.4529,3244.1,3244.0,0.30842]
[1736925531445,0.4816,3244.2,3243.9,3.2078]
[1736925531644,0.4816,3244.2,3244.1,0.30842]
[1736925536949,0.4816,3244.2,3244.1,41.10842]
[1736925541156,0.4816,3244.2,3244.1,40.8]
[1736925541457,4.33216768,3244.2,3244.1,40.8]
[1736925543156,4.02375768,3244.2,3243.1,2.41519008]
[1736925543362,0.30847,3243.6,3243.4,0.30848]
[1736925543566,1.4548,3243.5,3243.4,0.30848]
[1736925543756,4.93393099,3243.5,3243.4,41.10848]
[1736925544255,0.4943,3243.5,3243.4,46.73147008]
[1736925544463,0.4842,3244.2,3244.1,0.30841]
[1736925544755,3.9765062,3244.2,3244.1,0.30841]
[1736925545454,3.9765062,3244.2,3244.1,41.10841]
[1736925546556,0.4842,3244.2,3244.1,41.10841]
[1736925557565,0.4842,3244.2,3244.1,40.8]
[1736925557765,3.78209998,3244.2,3244.1,40.8]
[1736925557964,4.09050998,3244.2,3244.1,40.8]
[1736925558166,3.78209998,3244.2,3244.1,40.8]
[1736925559167,3.78209998,3244.2,3244.1,41.10842]
[1736925560971,0.4842,3244.2,3244.1,41.10842]
[1736925564972,3.98018514,3244.2,3244.1,41.10842]
[1736925565874,0.4842,3244.2,3244.1,41.10842]
[1736925566578,3.2078,3245.2,3244.1,44.41819008]
[1736925566874,4.17518321,3245.1,3244.6,2.41519008]
[1736925567070,4.17518321,3245.1,3245.0,0.30833]
[1736925567275,4.17518321,3245.1,3245.0,41.10833]
[1736925567675,4.17518321,3245.1,3245.0,40.8]
[1736925567978,4.17518321,3245.1,3245.0,41.10833]
[1736925570185,4.17518321,3245.1,3245.0,40.8]
[1736925570480,4.48350321,3245.1,3245.0,40.8]
[1736925570683,4.17518321,3245.1,3245.0,0.30833]
[1736925570885,4.48351321,3245.1,3244.9,0.30834]
[1736925571083,4.48351321,3245.1,3244.9,41.10834]
[1736925571276,4.48351321,3245.1,3244.5,3.2078]
[1736925571277,6.59037329,3245.1,3244.5,3.2078]
[1736925571476,6.59037329,3245.1,3244.5,3.51617]
[1736925571678,0.30839,3244.4,3243.9,3.2078]
[1736925571989,4.71145033,3244.3,3244.1,40.8]
[1736925572290,4.71145033,3244.3,3244.2,0.3084]
[1736925572673,4.71145033,3244.3,3244.1,40.8]
[1736925572883,5.01985033,3244.3,3244.1,41.10841]
[1736925573589,4.71145033,3244.3,3244.1,40.8]
[1736925573779,2.72360008,3244.2,3244.1,40.8]
[1736925574180,6.12262855,3244.2,3244.1,40.8]
[1736925575586,6.12262855,3244.2,3243.0,0.7713]
[1736925575587,0.30842,3244.1,3243.5,0.30847]
[1736925575784,0.30846,3243.7,3243.4,0.30848]
[1736925575984,1.4053,3243.6,3243.5,0.30847]
[1736925576192,4.77798436,3243.6,3243.5,0.30847]
[1736925576587,1.4053,3243.6,3243.5,41.10847]
[1736925576795,4.75144795,3243.6,3243.5,40.8]
[1736925577186,5.05990795,3243.6,3243.5,40.8]
[1736925577491,4.75144795,3243.6,3243.5,40.8]
[1736925577686,4.28134795,3243.6,3243.5,40.8]
[1736925577892,3.2078,3243.8,3243.7,0.30845]
[1736925578092,0.4835,3244.1,3243.8,0.30844]
[1736925578290,0.4835,3244.1,3243.5,41.2848]
[1736925578592,0.77513,3244.0,3243.8,0.30844]
[1736925579086,3.23116401,3243.9,3243.8,0.30844]
[1736925580686,0.4835,3244.1,3243.6,2.41519008]
[1736925580990,0.4835,3244.1,3244.0,0.30843]
[1736925581190,3.2078,3244.3,3244.2,0.30841]
[1736925581590,6.53814226,3244.3,3244.2,41.10841]
[1736925583093,6.84654226,3244.3,3244.2,40.8]
[1736925584795,6.53814226,3244.3,3244.2,41.10841]
[1736925584999,6.53814226,3244.3,3244.2,40.8]
[1736925585000,6.84654226,3244.3,3244.2,40.8]
[1736925587399,6.53814226,3244.3,3243.9,0.30843]
[1736925587598,0.30842,3244.1,3243.9,0.30843]
[1736925587800,0.9594,3244.0,3243.9,0.30843]
[1736925587996,4.21477446,3244.0,3243.9,0.30843]
[1736925588396,3.71837446,3244.0,3243.9,0.30843]
[1736925588703,3.25537446,3244.0,3243.9,0.30843]
[1736925591106,3.25537446,3244.0,3243.9,41.10843]
[1736925593104,3.24957446,3244.0,3243.9,46.73142008]
[1736925593409,0.9821,3245.0,3244.2,0.77101]
[1736925593608,0.9821,3245.0,3244.8,0.30834]
[1736925593808,3.36484079,3244.9,3244.8,0.30834]
[1736925596007,3.36484079,3244.9,3244.8,41.10834]
[1736925601713,0.9489,3245.3,3245.2,0.30831]
[1736925601918,1.2572,3245.3,3245.1,0.30832]
[1736925602110,3.44125399,3245.2,3245.1,0.30832]
[1736925603722,3.74956399,3245.2,3245.0,0.30833]
[1736925604427,0.30833,3245.1,3244.9,0.30833]
[1736925604815,3.47058074,3245.0,3244.9,0.30833]
[1736925605616,3.47058074,3245.0,3244.9,0.30834]
[1736925606022,3.38957298,3245.1,3245.0,0.30833]
[1736925606222,0.00273647,3245.1,3245.0,0.30833]
[1736925606717,3.70062945,3245.1,3245.0,0.30833]
[1736925606925,3.70062945,3245.1,3244.9,0.30834]
[1736925608421,0.30834,3245.0,3244.8,41.10834]
[1736925608617,0.76134,3245.0,3244.9,0.30834]
[1736925608926,3.3562227,3244.9,3244.8,41.10835]
[1736925609124,4.1175627,3245.0,3244.8,41.10835]
[1736925609320,0.30834,3244.9,3244.8,40.8]
[1736925609544,3.6645627,3244.9,3244.8,40.8]
[1736925610129,6.8723627,3244.9,3244.8,40.8]
[1736925610715,9.28755278,3244.9,3244.8,40.8]
[1736925611319,6.8723627,3244.9,3244.8,40.8]
[1736925611520,3.3562227,3244.9,3244.8,41.10835]
[1736925611722,0.00273647,3245.1,3245.0,0.30833]
[1736925611924,0.31105647,3245.1,3245.0,0.30833]
[1736925612129,0.00273647,3245.1,3244.8,40.8]
[1736925612330,0.30834,3244.9,3244.8,40.8]
[1736925613137,0.00273647,3245.1,3244.8,40.8]
[1736925613434,3.24737141,3245.0,3244.8,40.8]
[1736925613634,3.24737141,3245.0,3244.9,0.30834]
[1736925613837,0.00273647,3245.1,3245.0,0.30833]
[1736925615434,0.00273647,3245.1,3244.8,40.8]
[1736925615435,0.30834,3244.9,3244.8,40.8]
[1736925615627,0.30838,3244.5,3244.3,0.30839]
[1736925615828,0.4865,3244.4,3244.3,0.30839]
[1736925616032,3.88686782,3244.4,3244.3,0.30839]
[1736925616233,4.38396782,3244.4,3244.3,41.10839]
[1736925616738,4.69235782,3244.4,3244.3,40.8]
[1736925616929,4.38396782,3244.4,3244.3,41.1084]
[1736925617126,0.9836,3244.4,3244.3,41.1084]
[1736925618134,1.29199,3244.4,3244.3,40.8]
[1736925618335,7.7306942,3244.4,3244.3,40.8]
[1736925618730,7.4223042,3244.4,3244.3,40.8]
[1736925619736,4.2145042,3244.4,3244.3,40.8]
[1736925620131,4.5228942,3244.4,3244.3,40.8]
[1736925620325,7.7306942,3244.4,3244.3,40.8]
[1736925624930,12.7306942,3244.4,3244.3,40.8]
[1736925625330,7.7306942,3244.4,3244.3,40.8]
[1736925625531,12.7306942,3244.4,3244.3,40.8]
[1736925626239,0.30847,3243.5,3243.3,0.30849]
[1736925626432,0.949,3243.4,3243.3,0.30849]
[1736925626632,4.48706201,3243.4,3243.3,41.10849]
[1736925626833,0.949,3243.4,3243.3,41.10849]
[1736925627132,4.37450158,3243.4,3243.3,41.10849]
[1736925627332,4.37450158,3243.4,3243.3,40.8]
[1736925627533,4.68298158,3243.4,3243.3,40.8]
[1736925628837,5.15798158,3243.4,3243.3,40.8]
[1736925631434,6.36998158,3243.4,3243.3,40.8]
[1736925631639,0.30855,3242.8,3242.3,0.9498]
[1736925631942,0.76216,3242.7,3242.4,0.30857]
[1736925632249,0.76216,3242.7,3242.5,40.8]
[1736925632637,3.49116895,3242.6,3242.5,40.8]
[1736925632844,3.49116895,3242.6,3242.5,41.10857]
[1736925633139,2.1379,3243.4,3242.5,41.10857]
[1736925633140,0.4723,3243.3,3243.2,0.3085]
[1736925633439,3.2078,3243.4,3243.3,0.30849]
[1736925633741,6.65510136,3243.4,3243.3,40.8]
[1736925634135,6.96358136,3243.4,3243.3,40.8]
[1736925634640,6.65510136,3243.4,3243.3,41.10849]
[1736925634846,3.2078,3243.4,3243.3,41.10849]
[1736925635344,0.4916,3243.8,3243.3,40.8]
[1736925635546,0.4916,3243.8,3243.6,0.30846]
[1736925635745,4.01959126,3243.8,3243.7,0.30845]
[1736925636347,3.52799126,3243.8,3243.7,0.30845]
[1736925636644,3.2078,3244.0,3243.3,44.0078]
[1736925636942,3.26752527,3243.9,3243.8,0.30844]
[1736925637148,3.51623,3244.0,3243.8,0.30844]
[1736925637444,3.37976718,3243.9,3243.8,0.30844]
[1736925639043,3.2078,3244.0,3243.4,2.41519008]
[1736925639244,0.4916,3244.2,3243.8,3.2078]
[1736925639442,0.4916,3244.2,3244.0,0.30842]
[1736925639644,3.44295165,3244.1,3244.0,0.30842]
[1736925641450,3.44295165,3244.1,3244.0,41.10842]
[1736925641845,3.2078,3244.4,3244.3,0.3084]
[1736925642151,6.43707829,3244.4,3244.3,0.3084]
[1736925642541,6.43707829,3244.4,3244.3,41.1084]
[1736925643949,3.22927829,3244.4,3244.3,41.1084]
[1736925644450,3.24195975,3244.5,3244.3,41.1084]
[1736925644651,0.30838,3244.5,3244.3,41.1084]
[1736925644838,3.8226923,3244.5,3244.3,40.8]
[1736925645040,2.41519008,3244.4,3244.3,40.8]
[1736925645350,0.30841,3244.2,3244.0,0.30842]
[1736925645751,4.0041123,3244.1,3244.0,0.30842]
[1736925646151,4.0041123,3244.1,3244.0,41.10842]
[1736925646650,4.3125323,3244.1,3244.0,40.8]
[1736925646946,4.8012323,3244.1,3244.0,40.8]
[1736925647151,7.21642238,3244.1,3244.0,40.8]
[1736925649551,10.42422238,3244.1,3244.0,40.8]
[1736925661557,0.30847,3243.6,3243.4,0.30848]
[1736925661952,0.30846,3243.7,3243.5,41.10847]
[1736925662148,0.4713,3244.0,3243.5,40.8]
[1736925662351,3.3154665,3243.6,3243.5,41.10847]
[1736925662554,0.30846,3243.6,3243.5,40.8]
[1736925662757,0.4713,3244.0,3243.5,40.8]
[1736925662960,0.30845,3243.7,3243.6,0.30846]
[1736925663358,3.70347377,3243.7,3243.6,0.30846]
[1736925663659,3.39502377,3243.7,3243.6,0.30846]
[1736925664065,0.30845,3243.7,3243.6,0.30846]
[1736925664360,3.81102672,3243.7,3243.6,0.30846]
[1736925664562,0.30845,3243.7,3243.6,0.30846]
[1736925664961,3.81102672,3243.7,3243.6,0.30846]
[1736925665659,0.30842,3244.1,3243.6,3.2078]
[1736925665963,3.75527423,3244.0,3243.9,0.30843]
[1736925666461,3.75527423,3244.0,3243.6,3.2078]
[1736925666462,0.30842,3244.1,3244.0,0.30843]
[1736925666664,0.30841,3244.2,3244.0,0.30843]
[1736925666869,0.30841,3244.2,3244.1,0.9806]
[1736925667161,3.78574129,3244.2,3244.1,0.9806]
[1736925668361,3.78574129,3244.2,3244.1,41.7806]
[1736925670172,3.78574129,3244.2,3244.1,42.08902]
[1736925672959,3.47733129,3244.2,3244.1,42.08902]
[1736925673159,3.78574129,3244.2,3244.1,42.08902]
[1736925674565,3.78574129,3244.2,3244.1,41.7806]
[1736925674765,3.78574129,3244.2,3244.1,42.08902]
[1736925675663,3.47733129,3244.2,3244.1,42.08902]
[1736925675865,3.78574129,3244.2,3244.1,42.08902]
[1736925676169,3.47733129,3244.2,3244.1,42.08902]
[1736925676868,3.78574129,3244.2,3244.1,42.08902]
[1736925677075,3.47733129,3244.2,3244.1,42.08902]
[1736925681074,3.44958091,3244.3,3244.2,0.30841]
[1736925681276,3.44958091,3244.4,3244.1,44.9884]
[1736925681471,3.44958091,3244.4,3244.3,0.3084]
[1736925681674,3.6965,3244.9,3244.8,0.30835]
[1736925681970,3.6965,3244.9,3244.8,41.10835]
[1736925682178,6.99926409,3244.9,3244.8,41.10835]
[1736925683371,3.79146409,3244.9,3244.8,41.10835]
[1736925683676,0.4931,3245.1,3245.0,0.30833]
[1736925683875,0.79731,3245.2,3245.0,0.30833]
[1736925684174,0.489,3245.2,3245.1,0.30832]
[1736925684582,3.84705671,3245.2,3245.1,0.30832]
[1736925685078,0.489,3245.2,3245.1,0.30832]
[1736925697182,3.7022,3245.5,3245.4,0.30829]
[1736925697183,0.4944,3245.5,3245.4,0.30829]
[1736925697387,0.9773,3245.5,3245.4,0.30829]
[1736925697589,0.4829,3245.5,3245.4,0.30829]
[1736925697793,0.4673,3245.9,3245.5,0.30828]
[1736925697984,0.9502,3245.9,3245.5,0.30828]
[1736925698388,0.4829,3245.9,3245.8,0.30825]
[1736925698992,0.4829,3245.9,3245.8,41.10825]
[1736925701692,0.4673,3246.2,3246.1,0.30823]
[1736925702094,0.4973,3246.2,3246.1,0.30823]
[1736925702495,3.2078,3246.4,3245.9,2.41519008]
[1736925702699,0.4819,3246.5,3246.4,0.3082]
[1736925703099,0.4819,3246.5,3246.4,41.1082]
[1736925703289,0.4757,3246.7,3246.4,40.8]
[1736925703493,0.4757,3246.7,3246.6,0.30818]
[1736925704006,0.4695,3246.8,3246.3,2.41519008]
[1736925704299,0.4819,3247.0,3246.9,0.30815]
[1736925705501,0.4819,3247.0,3246.6,40.8]
[1736925705900,0.79005,3247.0,3246.6,40.8]
[1736925706100,0.4819,3247.0,3246.6,40.8]
[1736925706297,0.4819,3247.0,3246.8,0.30816]
[1736925706503,0.79004,3247.0,3246.7,0.30817]
[1736925707800,0.4819,3247.0,3246.6,40.8]
[1736925708305,0.79004,3247.0,3246.7,0.30816]
[1736925708910,0.30815,3246.9,3246.7,0.30816]
[1736925709099,0.79005,3247.0,3246.7,0.30816]
[1736925709298,0.4819,3247.0,3246.9,0.30815]
[1736925713710,0.4819,3247.0,3246.6,44.0078]
[1736925713905,0.4819,3247.0,3246.8,0.30816]
[1736925714106,0.4819,3247.0,3246.9,0.30815]
[1736925714305,0.4819,3247.0,3246.6,44.0078]
[1736925714509,0.4819,3247.0,3246.9,0.30815]
[1736925714707,0.4695,3247.2,3246.6,44.0078]
[1736925714908,3.2078,3247.7,3246.6,44.0078]
[1736925714909,0.3081,3247.5,3247.3,0.30811]
[1736925715408,4.21630676,3247.6,3247.3,0.30811]
[1736925715610,0.3081,3247.5,3247.3,0.30811]
[1736925716409,3.90821676,3247.6,3247.3,0.30811]
[1736925716608,0.3081,3247.5,3247.3,0.30811]
[1736925716909,3.90821676,3247.6,3246.7,0.77043]
[1736925717115,3.90821676,3247.6,3247.4,40.8]
[1736925717316,0.30809,3247.5,3247.4,40.8]
[1736925718811,3.90821676,3247.6,3247.4,40.8]
[1736925719014,0.30809,3247.5,3247.4,40.8]
[1736925721515,3.65549957,3247.5,3247.4,40.8]
[1736925722327,3.34740957,3247.5,3247.4,40.8]
[1736925722629,3.65549957,3247.5,3247.4,41.1081]
[1736925723128,3.65549957,3247.5,3247.4,40.8]
[1736925723527,3.34740957,3247.5,3247.4,41.1081]
[1736925725632,3.65549957,3247.5,3247.4,40.8]
[1736925726832,3.34740957,3247.5,3247.4,41.1081]
[1736925729033,3.65549957,3247.5,3247.4,40.8]
[1736925730730,3.65549957,3247.5,3247.4,41.1081]
[1736925730929,3.65549957,3247.5,3247.4,40.8]
[1736925731129,3.34740957,3247.5,3247.4,41.1081]
[1736925737031,3.34740957,3247.5,3247.4,40.8]
[1736925737339,3.34740957,3247.5,3247.4,41.1081]
[1736925738341,4.48661298,3247.5,3247.4,41.1081]
[1736925740336,4.48661298,3247.5,3247.4,40.8]
[1736925740633,4.79470298,3247.5,3247.4,40.8]
[1736925741033,12.23099854,3247.5,3246.5,3.2078]
[1736925741235,1.13920341,3246.6,3246.5,3.2078]
[1736925741429,1.17248231,3247.4,3246.5,3.2078]
[1736925741430,3.2078,3247.4,3247.3,0.30811]
[1736925742839,3.2078,3247.4,3247.3,41.10811]
[1736925747750,0.4887,3247.8,3247.3,40.8]
[1736925748046,0.4887,3247.8,3247.7,0.30807]
[1736925748446,4.04929155,3247.8,3247.7,0.30807]